bitfinex-derivatives/quotes_SOLF0:USTF0_20250501
["timestamp","ask_amount","ask_price","bid_price","bid_amount"]
[1746061908127,31.4578,148.41,148.38,6.7389]
[1746061910230,31.4578,148.41,148.39,6.7385]
[1746061910830,31.4578,148.41,148.38,6.7389]
[1746061911126,24.72,148.41,148.33,5.9054]
[1746061911331,24.46,148.42,148.33,5.9054]
[1746061912531,24.46,148.42,148.41,6.7377]
[1746061916735,24.46,148.42,148.4,6.738]
[1746061916932,24.46,148.42,148.35,24.46]
[1746061917332,24.46,148.42,148.33,5.9054]
[1746061918132,6.7385,148.4,148.37,6.7393]
[1746061919935,6.7379,148.41,148.38,6.739]
[1746061920637,24.46,148.42,148.33,5.9054]
[1746061921637,24.46,148.42,148.41,6.7377]
[1746061925637,24.3,148.45,148.36,24.3]
[1746061927338,24.3,148.45,148.38,7.15754784]
[1746061927638,24.3,148.45,148.39,6.0126]
[1746061927936,31.0146,148.48,148.45,6.7359]
[1746061932640,24.28,148.48,148.39,6.0126]
[1746061932840,7.15754784,148.46,148.39,2.0657]
[1746061933042,7.15754784,148.43,148.36,24.3]
[1746061933230,24.28,148.42,148.36,24.3]
[1746061933636,24.28,148.42,148.4,6.7378]
[1746061933836,24.28,148.42,148.36,24.3]
[1746061934038,24.28,148.45,148.36,24.3]
[1746061934230,31.0163,148.45,148.41,6.7374]
[1746061935035,31.0163,148.45,148.42,6.737]
[1746061935242,24.28,148.45,148.36,24.3]
[1746061935737,31.0162,148.45,148.42,6.7371]
[1746061936239,24.28,148.45,148.42,6.7371]
[1746061936441,6.7364,148.44,148.41,6.7376]
[1746061936740,24.28,148.45,148.36,24.3]
[1746061937136,533.38,148.49,148.38,7.15754784]
[1746061937338,557.66,148.49,148.39,1.9368]
[1746061937545,24.28,148.49,148.41,7.15754784]
[1746061937740,6.7332,148.51,148.48,6.7343]
[1746061937940,24.28,148.52,148.44,24.28]
[1746061938143,24.28,148.52,148.45,1.9368]
[1746061938444,24.28,148.52,148.5,6.7335]
[1746061939046,31.0127,148.52,148.49,6.7339]
[1746061939245,24.28,148.52,148.45,1.9368]
[1746061939540,6.734,148.5,148.46,6.7352]
[1746061940744,6.734,148.5,148.47,6.7349]
[1746061941741,6.734,148.5,148.48,6.7345]
[1746061942045,6.734,148.5,148.45,1.9368]
[1746061942545,6.734,148.5,148.47,6.7348]
[1746061944450,24.28,148.52,148.45,1.9368]
[1746061944741,24.28,148.52,148.42,2.1123]
[1746061944948,6.7343,148.49,148.45,6.7356]
[1746061945145,24.28,148.52,148.45,6.7356]
[1746061946548,6.7345,148.49,148.45,6.7356]
[1746061947147,6.7345,148.49,148.46,6.7353]
[1746061948149,6.7345,148.48,148.46,6.7353]
[1746061948351,6.7345,148.48,148.45,6.7357]
[1746061948649,6.735,148.47,148.42,2.1123]
[1746061948953,24.28,148.52,148.44,6.736]
[1746061949244,6.7349,148.48,148.44,6.736]
[1746061949448,30.8349,148.48,148.44,6.736]
[1746061951849,30.8349,148.48,148.45,6.7358]
[1746061954967,6.7352,148.47,148.42,2.1123]
[1746061955254,24.1,148.48,148.41,2.0518]
[1746061955657,6.7358,148.46,148.43,6.7365]
[1746061955852,24.1,148.48,148.38,26.0609]
[1746061956355,26.0203,148.48,148.38,26.0609]
[1746061957358,6.7365,148.44,148.41,6.7375]
[1746061957559,30.8365,148.44,148.41,6.7375]
[1746061959158,30.8365,148.44,148.4,6.738]
[1746061961163,6.737,148.43,148.4,6.738]
[1746061961365,6.737,148.43,148.39,6.7385]
[1746061962063,6.737,148.43,148.4,6.738]
[1746061962964,24.1,148.44,148.41,6.7376]
[1746061963154,24.1,148.44,148.38,1.9609]
[1746061964564,24.1,148.44,148.42,6.737]
[1746061964766,24.1,148.44,148.38,1.9609]
[1746061966767,30.8367,148.44,148.4,6.7378]
[1746061967266,24.1,148.44,148.4,6.7378]
[1746061968067,30.8366,148.44,148.4,6.7378]
[1746061968568,24.1,148.44,148.4,6.7378]
[1746061968769,6.7369,148.43,148.4,6.7378]
[1746061969469,30.8364,148.44,148.41,6.7376]
[1746061972369,6.7368,148.43,148.41,6.7376]
[1746061972570,6.7368,148.43,148.4,6.738]
[1746061974172,6.7368,148.43,148.41,6.7377]
[1746061974875,6.7368,148.43,148.4,6.738]
[1746061977184,6.7368,148.43,148.41,6.7377]
[1746061977372,30.8366,148.44,148.41,6.7377]
[1746061977976,6.7369,148.43,148.41,6.7377]
[1746061978178,6.7369,148.43,148.4,6.738]
[1746061978984,24.1,148.44,148.37,2.0389]
[1746061979182,24.1,148.44,148.36,2.1085]
[1746061979586,6.7384,148.4,148.37,6.7394]
[1746061979777,7.15283072,148.42,148.34,2.0016]
[1746061979983,24.1,148.41,148.34,2.0016]
[1746061980185,6.7386,148.39,148.36,6.7397]
[1746061980383,24.1,148.41,148.34,2.0016]
[1746061981186,6.7384,148.4,148.37,6.7395]
[1746061982287,6.7387,148.39,148.36,6.7398]
[1746061982485,24.1,148.41,148.34,2.0016]
[1746061982678,7.15283072,148.39,148.32,28.1191]
[1746061982884,6.7394,148.38,148.35,6.7402]
[1746061983077,6.7394,148.38,148.32,28.1191]
[1746061983283,7.15283072,148.39,148.32,28.1191]
[1746061983588,7.15283072,148.39,148.22,13.4925]
[1746061983589,7.15283072,148.33,148.22,13.4925]
[1746061983889,24.1,148.34,148.25,4.1629]
[1746061984184,24.1,148.34,148.3,6.7424]
[1746061984886,30.8411,148.34,148.3,6.7424]
[1746061985586,24.1,148.34,148.25,28.2629]
[1746061986789,24.1,148.34,148.31,6.7419]
[1746061989891,24.1,148.34,148.32,6.7417]
[1746061990691,24.1,148.34,148.33,6.7413]
[1746061992590,24.1,148.37,148.34,6.7407]
[1746061993082,24.1,148.37,148.35,6.74]
[1746061995890,24.1,148.37,148.35,6.7401]
[1746061996291,24.1,148.37,148.29,24.1]
[1746061997692,30.8395,148.37,148.29,24.1]
[1746061999593,30.8395,148.37,148.34,6.7408]
[1746062000896,24.1,148.37,148.25,362.1629]
[1746062001087,24.1,148.37,148.26,26.1459]
[1746062001997,6.741,148.34,148.31,6.7422]
[1746062003295,6.7405,148.35,148.31,6.7422]
[1746062005696,24.1,148.37,148.3,6.7426]
[1746062005894,7.15283072,148.34,148.26,2.0459]
[1746062006096,24.12,148.33,148.25,4.1629]
[1746062006395,6.7429,148.3,148.26,6.7442]
[1746062006699,6.7428,148.3,148.26,6.7442]
[1746062006993,6.7428,148.3,148.27,6.7439]
[1746062007195,7.15283072,148.31,148.27,6.7439]
[1746062007495,13.89523072,148.31,148.27,6.7439]
[1746062008693,6.7427,148.3,148.26,6.7444]
[1746062009298,6.7427,148.3,148.27,6.744]
[1746062010098,13.89523072,148.31,148.28,6.7435]
[1746062010288,7.15283072,148.31,148.25,2.1135]
[1746062011200,7.15283072,148.31,148.28,6.7433]
[1746062012199,13.89513072,148.31,148.28,6.7433]
[1746062018403,6.7428,148.3,148.27,6.7439]
[1746062019002,7.15283072,148.31,148.25,2.1135]
[1746062019902,7.15283072,148.31,148.27,6.7437]
[1746062020104,7.15283072,148.31,148.25,2.1135]
[1746062020504,13.89553072,148.31,148.27,6.7438]
[1746062021803,6.7427,148.3,148.27,6.7438]
[1746062022099,7.15283072,148.31,148.28,6.7435]
[1746062022302,7.15283072,148.31,148.25,2.1135]
[1746062023107,13.89513072,148.31,148.28,6.7432]
[1746062025512,13.89513072,148.31,148.27,6.7438]
[1746062025702,6.7428,148.3,148.27,6.7438]
[1746062025908,7.15283072,148.28,148.2,2.0047]
[1746062026209,6.7446,148.26,148.2,2.0047]
[1746062026709,6.7453,148.25,148.21,6.7464]
[1746062027408,6.7453,148.25,148.22,6.7462]
[1746062027610,6.7456,148.24,148.18,4.0843]
[1746062028103,13.89793072,148.25,148.18,4.0843]
[1746062029604,13.89793072,148.25,148.22,6.7463]
[1746062029908,7.15283072,148.25,148.18,4.0843]
[1746062030113,7.15283072,148.25,148.2,6.7472]
[1746062030613,7.15283072,148.25,148.19,6.7475]
[1746062031311,7.15283072,148.25,148.18,6.748]
[1746062031911,6.7469,148.21,148.18,6.748]
[1746062032110,31.27283072,148.22,148.17,6.7484]
[1746062032311,24.12,148.21,148.17,6.7484]
[1746062032613,6.7476,148.2,148.17,6.7484]
[1746062033117,30.8668,148.21,148.18,6.7481]
[1746062033408,24.12,148.21,148.18,6.7481]
[1746062034313,24.12,148.21,148.19,6.7477]
[1746062035217,30.8668,148.21,148.18,6.748]
[1746062035715,24.12,148.21,148.19,6.7477]
[1746062036613,24.12,148.21,148.2,6.7473]
[1746062038016,24.12,148.21,148.19,6.7475]
[1746062038811,24.12,148.21,148.09,534.14]
[1746062039012,7.15283072,148.19,148.11,2.0305]
[1746062039314,7.15283072,148.19,148.16,6.7491]
[1746062039514,7.15283072,148.19,148.11,2.0305]
[1746062040019,13.90083072,148.19,148.11,2.0305]
[1746062040519,13.90083072,148.19,148.15,6.7492]
[1746062041320,7.15283072,148.19,148.16,6.749]
[1746062041516,7.15283072,148.19,148.11,2.0305]
[1746062041819,7.15283072,148.19,148.16,6.7488]
[1746062042019,13.90063072,148.19,148.11,2.0305]
[1746062042319,7.15283072,148.19,148.16,6.749]
[1746062042818,7.15283072,148.19,148.11,2.0305]
[1746062043122,7.15283072,148.22,148.11,2.0305]
[1746062043320,24.12,148.21,148.11,2.0305]
[1746062044120,24.12,148.21,148.19,6.7475]
[1746062045618,24.12,148.21,148.18,6.748]
[1746062046221,24.12,148.21,148.19,6.7476]
[1746062050121,24.12,148.21,148.2,6.7473]
[1746062050718,24.12,148.24,148.21,6.7465]
[1746062051423,30.8656,148.24,148.2,6.747]
[1746062051624,24.12,148.24,148.17,2.0744]
[1746062052026,6.7461,148.23,148.17,2.0744]
[1746062053226,6.7465,148.22,148.17,2.0744]
[1746062054225,6.7465,148.22,148.19,6.7475]
[1746062054928,6.7461,148.23,148.19,6.7475]
[1746062055226,6.7461,148.23,148.2,6.7472]
[1746062055526,24.12,148.24,148.17,2.0744]
[1746062055827,24.12,148.24,148.19,6.7473]
[1746062056131,6.7461,148.23,148.17,2.0744]
[1746062056425,24.12,148.24,148.17,2.0744]
[1746062056727,6.7466,148.22,148.17,2.0744]
[1746062057031,6.7466,148.22,148.19,6.7473]
[1746062057532,6.7461,148.23,148.2,6.747]
[1746062061432,30.8655,148.24,148.21,6.7465]
[1746062062732,30.8656,148.24,148.21,6.7465]
[1746062063633,6.7459,148.23,148.2,6.747]
[1746062064930,6.7459,148.23,148.21,6.7468]
[1746062065137,30.8655,148.24,148.21,6.7468]
[1746062066730,30.8655,148.24,148.22,6.7462]
[1746062066936,24.12,148.24,148.22,6.7462]
[1746062067536,30.8655,148.24,148.21,6.7466]
[1746062068136,30.8655,148.24,148.22,6.7463]
[1746062071540,24.12,148.24,148.22,6.7463]
[1746062072446,24.12,148.24,148.23,6.7459]
[1746062072637,24.12,148.24,148.17,2.0744]
[1746062073542,24.12,148.24,148.23,6.7459]
[1746062077342,24.12,148.24,148.22,6.7462]
[1746062077542,24.12,148.24,148.18,24.1]
[1746062079044,24.12,148.24,148.22,6.746]
[1746062079340,24.12,148.24,148.18,24.1]
[1746062080242,24.12,148.24,148.23,6.7459]
[1746062083546,24.12,148.24,148.22,6.7461]
[1746062084148,30.8655,148.24,148.21,6.7466]
[1746062087446,24.12,148.24,148.19,6.7475]
[1746062088249,6.7466,148.22,148.19,6.7475]
[1746062088541,24.12,148.24,148.18,6.7481]
[1746062088748,6.7471,148.21,148.18,6.7481]
[1746062088944,6.7471,148.21,148.17,2.0744]
[1746062089549,6.7465,148.22,148.19,6.7477]
[1746062089950,6.7465,148.22,148.17,2.0744]
[1746062090250,24.12,148.24,148.17,2.0744]
[1746062092249,24.12,148.24,148.22,6.7459]
[1746062092449,24.12,148.24,148.17,2.0744]
[1746062092646,24.1,148.25,148.17,2.0744]
[1746062092951,24.1,148.25,148.24,6.7454]
[1746062093148,24.1,148.28,148.2,24.1]
[1746062093550,24.1,148.28,148.21,2.1075]
[1746062094351,24.1,148.31,148.22,2.0181]
[1746062094852,24.1,148.31,148.23,1.9831]
[1746062095151,30.8423,148.31,148.27,6.7438]
[1746062096750,24.1,148.31,148.23,1.9831]
[1746062096952,7.15283072,148.29,148.23,1.9831]
[1746062097552,6.7444,148.27,148.23,8.7288]
[1746062097851,30.8244,148.27,148.23,8.7288]
[1746062098053,30.8244,148.27,148.23,6.7457]
[1746062099551,24.08,148.27,148.24,6.7454]
[1746062100052,24.08,148.27,148.23,6.7457]
[1746062100347,24.08,148.27,148.2,24.1]
[1746062100556,6.7449,148.26,148.22,6.7463]
[1746062100851,24.08,148.27,148.2,24.1]
[1746062101053,30.8245,148.27,148.2,24.1]
[1746062101947,30.8245,148.27,148.23,6.7456]
[1746062103353,24.08,148.27,148.25,6.745]
[1746062103555,24.08,148.27,148.2,24.1]
[1746062104159,30.8242,148.27,148.23,6.7454]
[1746062104456,30.8242,148.27,148.2,24.1]
[1746062104752,24.08,148.27,148.2,24.1]
[1746062104957,6.745,148.25,148.2,24.1]
[1746062106054,6.7446,148.26,148.22,6.746]
[1746062106454,6.7446,148.26,148.2,24.1]
[1746062107257,6.7446,148.26,148.22,6.746]
[1746062107659,24.08,148.27,148.22,6.746]
[1746062108054,24.08,148.27,148.23,6.7458]
[1746062109059,6.7446,148.26,148.23,6.7458]
[1746062110660,24.08,148.27,148.23,6.7458]
[1746062110661,30.8243,148.27,148.23,6.7458]
[1746062113464,24.08,148.27,148.24,6.7452]
[1746062114663,30.8242,148.27,148.24,6.7452]
[1746062117966,6.7446,148.26,148.23,6.7457]
[1746062118167,24.08,148.27,148.2,24.1]
[1746062118568,6.7449,148.26,148.23,6.7456]
[1746062119863,6.7449,148.26,148.24,6.7453]
[1746062120068,30.8242,148.27,148.24,6.7453]
[1746062120368,24.08,148.27,148.2,24.1]
[1746062122070,24.08,148.27,148.25,6.7446]
[1746062122965,24.08,148.27,148.26,6.7445]
[1746062123168,24.08,148.27,148.2,24.1]
[1746062123470,24.08,148.27,148.25,6.7447]
[1746062123666,24.08,148.27,148.2,24.1]
[1746062125872,30.8241,148.27,148.24,6.7452]
[1746062126573,24.08,148.27,148.24,6.7452]
[1746062127973,30.8242,148.27,148.24,6.7452]
[1746062130071,24.08,148.27,148.25,6.745]
[1746062131078,30.8241,148.27,148.25,6.745]
[1746062131577,6.7445,148.26,148.2,24.1]
[1746062131876,24.08,148.27,148.2,24.1]
[1746062132273,6.7445,148.26,148.23,6.7455]
[1746062133077,30.8242,148.27,148.24,6.7453]
[1746062133779,30.8242,148.27,148.25,6.7449]
[1746062134571,6.7445,148.26,148.24,6.7452]
[1746062135378,30.8242,148.27,148.24,6.7452]
[1746062135576,4.58769219,148.26,148.24,6.7452]
[1746062136076,11.33229219,148.26,148.24,6.7452]
[1746062136478,4.58769219,148.26,148.24,6.7452]
[1746062138678,4.58769219,148.26,148.25,6.745]
[1746062139879,24.08,148.27,148.26,6.7445]
[1746062142577,11.33059219,148.3,148.26,6.7445]
[1746062142778,28.64769219,148.3,148.25,4.58769219]
[1746062142982,24.06,148.3,148.25,4.58769219]
[1746062143481,24.06,148.3,148.25,8.67979219]
[1746062143781,4.58769219,148.32,148.3,6.7426]
[1746062145478,565.1213,148.33,148.3,6.7426]
[1746062145683,30.8013,148.33,148.3,6.7426]
[1746062146180,24.06,148.33,148.25,4.0921]
[1746062146879,24.06,148.33,148.31,6.742]
[1746062147673,6.7398,148.37,148.26,7.16205127]
[1746062147977,24.04,148.36,148.27,24.04]
[1746062150174,24.04,148.39,148.29,7.16205127]
[1746062150381,24.04,148.39,148.3,6.0983]
[1746062150582,24.04,148.39,148.31,24.04]
[1746062150888,30.7789,148.39,148.35,6.7403]
[1746062151089,30.7789,148.39,148.31,24.04]
[1746062151588,30.7789,148.39,148.35,6.7403]
[1746062154490,6.7392,148.38,148.35,6.7403]
[1746062154890,24.04,148.39,148.35,6.7403]
[1746062155189,24.04,148.39,148.31,24.04]
[1746062155790,30.7787,148.39,148.36,6.7399]
[1746062156785,24.04,148.39,148.31,24.04]
[1746062156991,24.04,148.39,148.37,6.7395]
[1746062157589,24.04,148.39,148.36,6.7398]
[1746062159492,30.7789,148.39,148.36,6.7398]
[1746062160198,24.04,148.39,148.31,24.04]
[1746062160892,6.7403,148.36,148.33,6.7411]
[1746062161699,6.7403,148.36,148.34,6.7408]
[1746062161898,6.7397,148.37,148.34,6.7408]
[1746062165302,24.04,148.39,148.31,24.04]
[1746062165808,24.04,148.39,148.38,6.7391]
[1746062165999,24.02,148.42,148.32,7.16205127]
[1746062166908,30.7575,148.42,148.32,7.16205127]
[1746062167703,25.9603,148.45,148.35,7.16205127]
[1746062167903,7.16205127,148.49,148.38,7.16205127]
[1746062168104,24.02,148.48,148.39,25.9995]
[1746062169101,24.02,148.48,148.41,7.16205127]
[1746062169306,24.02,148.51,148.41,7.16205127]
[1746062169508,24.02,148.51,148.48,6.7343]
[1746062169706,24.02,148.51,148.44,24.02]
[1746062170211,24.02,148.51,148.48,6.7342]
[1746062171310,24.02,148.51,148.44,24.02]
[1746062172314,24.02,148.51,148.48,6.7342]
[1746062172903,24.02,148.51,148.44,24.02]
[1746062172904,24.02,148.51,148.47,6.7348]
[1746062173108,30.7535,148.51,148.44,24.02]
[1746062173412,24.02,148.51,148.44,24.02]
[1746062173610,6.7338,148.5,148.41,24.0]
[1746062174613,6.7341,148.49,148.41,24.0]
[1746062175011,24.02,148.51,148.41,24.0]
[1746062175509,24.0,148.54,148.41,31.16205127]
[1746062176011,30.7321,148.54,148.41,31.16205127]
[1746062177209,30.7321,148.54,148.5,6.7333]
[1746062180315,24.0,148.54,148.51,6.733]
[1746062180617,24.0,148.54,148.45,29.9019]
[1746062181316,24.0,148.54,148.52,6.7326]
[1746062181613,1.9289,148.57,148.47,7.16205127]
[1746062181911,24.0,148.57,148.5,7.16205127]
[1746062182108,24.0,148.57,148.5,31.16205127]
[1746062182509,24.0,148.57,148.55,6.731]
[1746062183217,24.0,148.57,148.54,6.7316]
[1746062183417,557.66,148.6,148.51,3.9092]
[1746062183717,557.66,148.6,148.54,6.7315]
[1746062184014,6.7297,148.59,148.54,6.7315]
[1746062184714,6.73,148.58,148.54,6.7315]
[1746062185311,24.0,148.6,148.52,1.9669]
[1746062188319,1.9648,148.61,148.53,7.16205127]
[1746062188614,23.98,148.63,148.54,23.98]
[1746062188915,23.96,148.63,148.54,23.98]
[1746062189117,30.6879,148.63,148.54,23.98]
[1746062189422,23.96,148.63,148.54,23.98]
[1746062189617,6.729,148.61,148.57,6.7302]
[1746062189818,31.12205127,148.63,148.54,23.98]
[1746062190315,6.7286,148.62,148.57,6.7302]
[1746062190820,6.7287,148.61,148.57,6.7302]
[1746062191119,31.12205127,148.63,148.54,23.98]
[1746062191518,6.7288,148.61,148.57,6.7302]
[1746062193421,6.7292,148.6,148.57,6.7302]
[1746062198326,1.9568,148.62,148.54,23.98]
[1746062199424,1.9568,148.62,148.59,6.7292]
[1746062200622,8.6853,148.62,148.54,23.98]
[1746062200824,1.9568,148.62,148.58,6.7298]
[1746062201232,6.7289,148.61,148.58,6.7298]
[1746062201528,1.9568,148.62,148.57,6.7302]
[1746062201720,6.7297,148.59,148.54,23.98]
[1746062201928,9.11885127,148.62,148.54,23.98]
[1746062202129,1.9568,148.62,148.54,23.98]
[1746062202426,6.7287,148.61,148.54,23.98]
[1746062202628,6.7287,148.61,148.58,6.7297]
[1746062202826,30.6879,148.63,148.54,23.98]
[1746062203325,30.6879,148.63,148.6,6.7289]
[1746062203830,6.7282,148.62,148.59,6.7294]
[1746062206629,23.96,148.63,148.58,6.73]
[1746062206934,23.96,148.63,148.54,23.98]
[1746062207233,6.7293,148.6,148.56,6.7306]
[1746062207432,7.16205127,148.62,148.56,6.7306]
[1746062208930,7.16205127,148.62,148.55,6.7312]
[1746062209335,7.16205127,148.62,148.51,27.8692]
[1746062209633,6.7294,148.6,148.51,25.9039]
[1746062210535,6.7294,148.6,148.56,6.7305]
[1746062210735,23.96,148.59,148.51,25.9039]
[1746062210939,23.96,148.59,148.56,6.7309]
[1746062211233,30.6898,148.59,148.56,6.7309]
[1746062211736,23.96,148.59,148.57,6.7302]
[1746062212835,30.6896,148.59,148.56,6.7307]
[1746062216138,30.6896,148.59,148.57,6.7304]
[1746062218040,23.96,148.59,148.57,6.7304]
[1746062218436,23.96,148.59,148.58,6.73]
[1746062219737,30.6896,148.59,148.51,31.12205127]
[1746062221339,30.6896,148.59,148.56,6.7305]
[1746062221541,30.6896,148.59,148.51,31.12205127]
[1746062221739,23.96,148.59,148.51,31.12205127]
[1746062222340,23.96,148.59,148.51,23.96]
[1746062222839,23.96,148.59,148.57,6.7301]
[1746062223636,23.96,148.59,148.56,6.7307]
[1746062223841,23.96,148.59,148.51,23.96]
[1746062225543,6.7288,148.61,148.51,23.96]
[1746062225940,6.7288,148.61,148.57,6.73]
[1746062226341,6.7288,148.61,148.51,23.96]
[1746062226844,30.6883,148.62,148.51,23.96]
[1746062227046,23.96,148.62,148.58,6.7297]
[1746062228245,6.7286,148.61,148.58,6.7297]
[1746062229045,23.96,148.62,148.57,6.7303]
[1746062229242,23.96,148.6,148.51,23.96]
[1746062230247,6.7303,148.58,148.55,6.7313]
[1746062230652,23.96,148.6,148.51,23.96]
[1746062231248,30.6892,148.6,148.56,6.7306]
[1746062232148,23.96,148.6,148.51,23.96]
[1746062232649,6.7298,148.59,148.55,6.7309]
[1746062232844,6.7298,148.59,148.51,23.96]
[1746062233847,6.7301,148.58,148.55,6.731]
[1746062234649,23.96,148.6,148.51,23.96]
[1746062235248,6.7312,148.56,148.53,6.732]
[1746062235648,23.96,148.6,148.51,23.96]
[1746062235850,23.96,148.6,148.54,6.7316]
[1746062235851,6.7307,148.57,148.54,6.7316]
[1746062236845,23.96,148.6,148.53,6.7321]
[1746062237051,7.16205127,148.56,148.47,23.96]
[1746062237251,23.96,148.55,148.47,23.96]
[1746062237652,6.7325,148.53,148.5,6.7332]
[1746062240949,6.732,148.54,148.51,6.7331]
[1746062241453,23.96,148.55,148.47,23.96]
[1746062242050,6.7319,148.54,148.51,6.7331]
[1746062242251,23.96,148.55,148.51,6.7331]
[1746062242750,30.6916,148.55,148.51,6.7331]
[1746062243053,23.96,148.55,148.51,6.7331]
[1746062243254,23.96,148.55,148.52,6.7327]
[1746062243753,30.6916,148.55,148.52,6.7327]
[1746062244256,23.96,148.55,148.53,6.7322]
[1746062244455,23.96,148.55,148.47,23.96]
[1746062245756,30.6915,148.55,148.47,23.96]
[1746062246056,23.96,148.55,148.52,6.7323]
[1746062246258,23.96,148.55,148.47,23.96]
[1746062247157,23.96,148.55,148.52,6.7323]
[1746062247657,23.96,148.55,148.47,23.96]
[1746062248353,23.96,148.55,148.49,6.7339]
[1746062248555,23.96,148.55,148.47,23.96]
[1746062249159,23.96,148.55,148.52,6.7323]
[1746062250459,23.96,148.55,148.53,6.7322]
[1746062250656,23.96,148.58,148.47,31.12205127]
[1746062251060,23.96,148.58,148.54,6.7314]
[1746062251259,30.6903,148.58,148.54,6.7314]
[1746062251461,30.6903,148.58,148.47,31.12205127]
[1746062252764,30.6903,148.58,148.54,6.7314]
[1746062254166,6.7305,148.57,148.54,6.7314]
[1746062254663,6.731,148.56,148.53,6.732]
[1746062254963,6.731,148.56,148.48,2.0718]
[1746062256165,6.731,148.56,148.53,6.7319]
[1746062257063,6.7306,148.57,148.54,6.7317]
[1746062257759,23.96,148.58,148.51,23.96]
[1746062257959,23.96,148.58,148.52,1.9519]
[1746062258466,23.96,148.58,148.56,6.7307]
[1746062258665,23.96,148.58,148.52,1.9519]
[1746062259666,23.96,148.58,148.56,6.7306]
[1746062260369,23.96,148.58,148.57,6.7304]
[1746062261468,23.96,148.58,148.56,6.7307]
[1746062261968,6.731,148.56,148.53,6.7322]
[1746062262166,6.731,148.56,148.51,23.96]
[1746062262470,23.96,148.58,148.51,23.96]
[1746062262672,6.7307,148.57,148.54,6.7315]
[1746062262967,23.96,148.58,148.51,23.96]
[1746062263172,30.6902,148.58,148.55,6.7311]
[1746062264366,23.96,148.58,148.51,23.96]
[1746062264566,23.96,148.58,148.56,6.7308]
[1746062265264,30.69,148.58,148.55,6.7312]
[1746062265674,6.7305,148.57,148.51,23.96]
[1746062265970,23.96,148.58,148.51,23.96]
[1746062266276,23.96,148.58,148.47,6.1086]
[1746062266277,23.96,148.58,148.48,23.96]
[1746062266467,6.7306,148.57,148.54,6.7318]
[1746062272275,6.7306,148.57,148.55,6.7314]
[1746062272976,6.7306,148.57,148.54,6.7316]
[1746062273378,6.7306,148.57,148.48,23.96]
[1746062273576,30.6901,148.58,148.55,6.7313]
[1746062276181,23.96,148.58,148.56,6.7308]
[1746062276380,23.96,148.58,148.52,23.96]
[1746062276687,1.34589502,148.6,148.52,31.12205127]
[1746062276882,1.34589502,148.6,148.53,6.1106]
[1746062278182,1.34589502,148.6,148.58,6.7296]
[1746062278381,1.34589502,148.6,148.53,6.1106]
[1746062280385,1.34589502,148.6,148.56,6.7306]
[1746062280585,6.7298,148.59,148.56,6.7306]
[1746062281495,6.73,148.58,148.56,6.7306]
[1746062281787,1.34589502,148.6,148.56,6.7306]
[1746062281987,6.7298,148.59,148.56,6.7306]
[1746062282191,1.34589502,148.6,148.55,6.7312]
[1746062282385,23.94,148.59,148.55,6.7312]